[Event "Titled Tuesday Blitz July 05 Late 2022"]
[White "Ambartsumova, Karina"]
[Black "Omariev, Maksim"]
[WhiteFideId "4166299"]
[BlackFideId "4193423"]
[WhiteElo "2262"]
[BlackElo "2430"]
[Result "1/2-1/2"]
[Round "05"]
[TimeControl "180+1"]
[Date "2022.07.06"]
[WhiteClock "0:00:05"]
[BlackClock "0:00:08"]

1. d4 {[%clk 0:02:56]}  d5 {[%clk 0:02:59]} 2. Nf3 {[%clk 0:02:55]}  Nf6 {[%clk 0:02:59]} 3. c4 {[%clk 0:02:55]}  c6 {[%clk 0:02:59]} 4. g3 {[%clk 0:02:55]}  Bf5 {[%clk 0:02:54]} 5. Nc3 {[%clk 0:02:52]}  e6 {[%clk 0:02:55]} 6. Qb3 {[%clk 0:02:51]}  Qb6 {[%clk 0:02:50]} 7. c5 {[%clk 0:02:51]}  Qc7 {[%clk 0:02:50]} 8. Bf4 {[%clk 0:02:50]}  Qc8 {[%clk 0:02:51]} 9. Nh4 {[%clk 0:02:50]}  Bg4 {[%clk 0:02:46]} 10. Bg2 {[%clk 0:02:43]}  Nbd7 {[%clk 0:02:41]} 11. Qc2 {[%clk 0:02:41]}  Be7 {[%clk 0:02:28]} 12. O-O {[%clk 0:02:40]}  Nh5 {[%clk 0:02:25]} 13. Qd2 {[%clk 0:01:51]}  Bxh4 {[%clk 0:02:21]} 14. gxh4 {[%clk 0:01:50]}  Nxf4 {[%clk 0:02:19]} 15. Qxf4 {[%clk 0:01:50]}  Bf5 {[%clk 0:02:13]} 16. e4 {[%clk 0:01:33]}  dxe4 {[%clk 0:02:10]} 17. Bxe4 {[%clk 0:01:31]}  g6 {[%clk 0:01:31]} 18. Kh1 {[%clk 0:01:25]}  Qb8 {[%clk 0:01:23]} 19. Qh6 {[%clk 0:01:17]}  Qc7 {[%clk 0:01:11]} 20. b4 {[%clk 0:01:07]}  O-O-O {[%clk 0:00:47]} 21. Qe3 {[%clk 0:00:56]}  Nf6 {[%clk 0:00:45]} 22. f3 {[%clk 0:00:46]}  Nd5 {[%clk 0:00:29]} 23. Bxd5 {[%clk 0:00:45]}  exd5 {[%clk 0:00:29]} 24. b5 {[%clk 0:00:44]}  Rhe8 {[%clk 0:00:27]} 25. Qd2 {[%clk 0:00:45]}  Qa5 {[%clk 0:00:11]} 26. Rfc1 {[%clk 0:00:33]}  Re6 {[%clk 0:00:10]} 27. bxc6 {[%clk 0:00:31]}  bxc6 {[%clk 0:00:11]} 28. Qf4 {[%clk 0:00:27]}  Rde8 {[%clk 0:00:09]} 29. h5 {[%clk 0:00:24]}  Qa3 {[%clk 0:00:07]} 30. Qd2 {[%clk 0:00:15]}  Re3 {[%clk 0:00:06]} 31. Nb1 {[%clk 0:00:06]}  Qd3 {[%clk 0:00:04]} 32. Qxd3 {[%clk 0:00:06]}  Rxd3 {[%clk 0:00:05]} 33. Nc3 {[%clk 0:00:06]}  Rxf3 {[%clk 0:00:05]} 34. Kg2 {[%clk 0:00:05]}  Rd3 {[%clk 0:00:04]} 35. Rc2 {[%clk 0:00:04]}  Rxd4 {[%clk 0:00:04]} 36. Re2 {[%clk 0:00:03]}  Rg4+ {[%clk 0:00:04]} 37. Kf2 {[%clk 0:00:03]}  Rxe2+ {[%clk 0:00:04]} 38. Nxe2 {[%clk 0:00:03]}  Rh4 {[%clk 0:00:05]} 39. hxg6 {[%clk 0:00:03]}  hxg6 {[%clk 0:00:04]} 40. Kg3 {[%clk 0:00:04]}  Re4 {[%clk 0:00:04]} 41. Nf4 {[%clk 0:00:04]}  Re3+ {[%clk 0:00:05]} 42. Kf2 {[%clk 0:00:04]}  Rc3 {[%clk 0:00:05]} 43. Re1 {[%clk 0:00:04]}  Kd7 {[%clk 0:00:04]} 44. Ne2 {[%clk 0:00:01]}  Rxc5 {[%clk 0:00:04]} 45. Nd4 {[%clk 0:00:01]}  Rc4 {[%clk 0:00:04]} 46. Nf3 {[%clk 0:00:02]}  Rf4 {[%clk 0:00:04]} 47. Kg3 {[%clk 0:00:02]}  Re4 {[%clk 0:00:05]} 48. Rf1 {[%clk 0:00:01]}  Re3 {[%clk 0:00:05]} 49. Kf2 {[%clk 0:00:02]}  Ra3 {[%clk 0:00:06]} 50. Ne5+ {[%clk 0:00:02]}  Ke6 {[%clk 0:00:05]} 51. Nxc6 {[%clk 0:00:02]}  Rxa2+ {[%clk 0:00:06]} 52. Kg3 {[%clk 0:00:03]}  Kd6 {[%clk 0:00:06]} 53. Nd4 {[%clk 0:00:03]}  Ra3+ {[%clk 0:00:06]} 54. Kf2 {[%clk 0:00:03]}  Be4 {[%clk 0:00:05]} 55. Nb5+ {[%clk 0:00:03]}  Kc5 {[%clk 0:00:05]} 56. Nxa3 {[%clk 0:00:04]}  Kb4 {[%clk 0:00:05]} 57. Nb1 {[%clk 0:00:05]}  a5 {[%clk 0:00:05]} 58. Nd2 {[%clk 0:00:05]}  Bd3 {[%clk 0:00:05]} 59. Re1 {[%clk 0:00:05]}  a4 {[%clk 0:00:05]} 60. Ke3 {[%clk 0:00:05]}  Kc3 {[%clk 0:00:04]} 61. Rc1+ {[%clk 0:00:05]}  Bc2 {[%clk 0:00:04]} 62. Ra1 {[%clk 0:00:04]}  Kb2 {[%clk 0:00:04]} 63. Re1 {[%clk 0:00:04]}  a3 {[%clk 0:00:05]} 64. Kd4 {[%clk 0:00:03]}  a2 {[%clk 0:00:05]} 65. Kxd5 {[%clk 0:00:02]}  Bb1 {[%clk 0:00:05]} 66. Nxb1 {[%clk 0:00:02]}  axb1=Q {[%clk 0:00:06]} 67. Rxb1+ {[%clk 0:00:03]}  Kxb1 {[%clk 0:00:07]} 68. Ke5 {[%clk 0:00:03]}  f5 {[%clk 0:00:07]} 69. Kf4 {[%clk 0:00:03]}  Kc2 {[%clk 0:00:07]} 70. h4 {[%clk 0:00:03]}  Kd3 {[%clk 0:00:07]} 71. h5 {[%clk 0:00:03]}  gxh5 {[%clk 0:00:07]} 72. Kxf5 {[%clk 0:00:04]}  h4 {[%clk 0:00:07]} 73. Kg4 {[%clk 0:00:04]}  h3 {[%clk 0:00:08]} 74. Kxh3 {[%clk 0:00:05]} 1/2-1/2


[Site "https://www.chess.com"]

[Event "Titled Tuesday Blitz July 05 Late 2022"]
[White "Barp, Alberto"]
[Black "Boder, Jan"]
[WhiteFideId "872555"]
[BlackFideId "16243226"]
[WhiteElo "2229"]
[BlackElo "2064"]
[Result "1-0"]
[Round "05"]
[TimeControl "180+1"]
[Date "2022.07.05"]
[WhiteClock "0:00:18"]
[BlackClock "0:00:03"]

1. d4 {[%clk 0:03:00]}  Nf6 {[%clk 0:02:59]} 2. c4 {[%clk 0:02:59]}  c5 {[%clk 0:02:59]} 3. d5 {[%clk 0:02:59]}  b5 {[%clk 0:03:00]} 4. cxb5 {[%clk 0:03:00]}  a6 {[%clk 0:03:00]} 5. bxa6 {[%clk 0:03:00]}  g6 {[%clk 0:03:01]} 6. Nc3 {[%clk 0:03:00]}  Bg7 {[%clk 0:03:01]} 7. e4 {[%clk 0:02:59]}  O-O {[%clk 0:03:01]} 8. Nf3 {[%clk 0:02:57]}  Qa5 {[%clk 0:03:00]} 9. Bd2 {[%clk 0:02:55]}  Bxa6 {[%clk 0:03:00]} 10. Be2 {[%clk 0:02:49]}  Qb4 {[%clk 0:02:48]} 11. e5 {[%clk 0:02:44]}  Ne4 {[%clk 0:02:40]} 12. a3 {[%clk 0:02:36]}  Nxc3 {[%clk 0:01:45]} 13. Bxc3 {[%clk 0:02:31]}  Qe4 {[%clk 0:01:45]} 14. h4 {[%clk 0:02:08]}  d6 {[%clk 0:01:45]} 15. h5 {[%clk 0:02:03]}  dxe5 {[%clk 0:01:34]} 16. hxg6 {[%clk 0:01:55]}  hxg6 {[%clk 0:01:29]} 17. Rh4 {[%clk 0:01:51]}  Qxe2+ {[%clk 0:00:54]} 18. Qxe2 {[%clk 0:01:51]}  Bxe2 {[%clk 0:00:54]} 19. Kxe2 {[%clk 0:01:52]}  Rd8 {[%clk 0:00:55]} 20. Rd1 {[%clk 0:01:51]}  Nd7 {[%clk 0:00:54]} 21. d6 {[%clk 0:01:25]}  exd6 {[%clk 0:00:52]} 22. Rxd6 {[%clk 0:01:26]}  f6 {[%clk 0:00:43]} 23. Nd2 {[%clk 0:01:19]}  Nf8 {[%clk 0:00:40]} 24. Rc6 {[%clk 0:01:15]}  Rac8 {[%clk 0:00:38]} 25. Ra6 {[%clk 0:01:12]}  Kf7 {[%clk 0:00:30]} 26. Ne4 {[%clk 0:01:06]}  Ra8 {[%clk 0:00:17]} 27. Rxa8 {[%clk 0:01:04]}  Rxa8 {[%clk 0:00:18]} 28. Nxc5 {[%clk 0:01:04]}  f5 {[%clk 0:00:16]} 29. Rb4 {[%clk 0:01:03]}  Ra7 {[%clk 0:00:13]} 30. f3 {[%clk 0:00:57]}  Ne6 {[%clk 0:00:10]} 31. Nxe6 {[%clk 0:00:55]}  Kxe6 {[%clk 0:00:11]} 32. Rb6+ {[%clk 0:00:52]}  Kd5 {[%clk 0:00:08]} 33. Rxg6 {[%clk 0:00:51]}  Bf8 {[%clk 0:00:08]} 34. Rg8 {[%clk 0:00:48]}  Bd6 {[%clk 0:00:08]} 35. Rd8 {[%clk 0:00:47]}  Ke6 {[%clk 0:00:07]} 36. Re8+ {[%clk 0:00:46]}  Kd5 {[%clk 0:00:07]} 37. Rc8 {[%clk 0:00:43]}  Rb7 {[%clk 0:00:06]} 38. Ra8 {[%clk 0:00:42]}  Kc4 {[%clk 0:00:04]} 39. Ra6 {[%clk 0:00:41]}  Kd5 {[%clk 0:00:02]} 40. Ra5+ {[%clk 0:00:39]}  Ke6 {[%clk 0:00:02]} 41. Kd3 {[%clk 0:00:38]}  Rg7 {[%clk 0:00:02]} 42. Ra6 {[%clk 0:00:37]}  Kd5 {[%clk 0:00:02]} 43. f4 {[%clk 0:00:31]}  e4+ {[%clk 0:00:02]} 44. Kc2 {[%clk 0:00:32]}  Rxg2+ {[%clk 0:00:02]} 45. Kb3 {[%clk 0:00:32]}  e3 {[%clk 0:00:03]} 46. Ra8 {[%clk 0:00:20]}  Bxf4 {[%clk 0:00:03]} 47. Re8 {[%clk 0:00:18]}  e2 {[%clk 0:00:04]} 48. a4 {[%clk 0:00:18]}  Bg3 {[%clk 0:00:02]} 49. a5 {[%clk 0:00:18]}  f4 {[%clk 0:00:02]} 50. a6 {[%clk 0:00:18]}  f3 {[%clk 0:00:03]} 51. a7 {[%clk 0:00:18]}  e1=Q {[%clk 0:00:02]} 52. a8=Q+ {[%clk 0:00:19]}  Kd6 {[%clk 0:00:02]} 53. Qd8+ {[%clk 0:00:18]}  Kc5 {[%clk 0:00:02]} 54. Bxe1 {[%clk 0:00:19]}  Bxe1 {[%clk 0:00:01]} 55. Rxe1 {[%clk 0:00:18]}  f2 {[%clk 0:00:02]} 56. Qc7+ {[%clk 0:00:17]}  Kd4 {[%clk 0:00:02]} 57. Qe5+ {[%clk 0:00:17]}  Kd3 {[%clk 0:00:02]} 58. Qe4+ {[%clk 0:00:17]}  Kd2 {[%clk 0:00:03]} 59. Qe3# {[%clk 0:00:18]} 1-0


[Site "https://www.chess.com"]

[Event "Titled Tuesday Blitz July 05 Late 2022"]
[White "Bazeev, German"]
[Black "Hardaway, Brewington"]
[WhiteFideId "24119350"]
[BlackFideId "30941849"]
[WhiteElo "2493"]
[BlackElo "1813"]
[Result "0-1"]
[Round "05"]
[TimeControl "180+1"]
[Date "2022.07.06"]
[WhiteClock "0:00:12"]
[BlackClock "0:01:19"]

1. d4 {[%clk 0:02:57]}  Nf6 {[%clk 0:03:00]} 2. Nf3 {[%clk 0:02:57]}  g6 {[%clk 0:03:00]} 3. c4 {[%clk 0:02:57]}  Bg7 {[%clk 0:02:59]} 4. Nc3 {[%clk 0:02:58]}  d5 {[%clk 0:02:59]} 5. cxd5 {[%clk 0:02:59]}  Nxd5 {[%clk 0:03:00]} 6. Qa4+ {[%clk 0:03:00]}  Bd7 {[%clk 0:02:59]} 7. Qa3 {[%clk 0:03:00]}  Bc6 {[%clk 0:02:55]} 8. Bg5 {[%clk 0:02:56]}  h6 {[%clk 0:02:52]} 9. Bh4 {[%clk 0:02:49]}  Nd7 {[%clk 0:02:46]} 10. e3 {[%clk 0:02:48]}  N7f6 {[%clk 0:02:32]} 11. Be2 {[%clk 0:02:25]}  O-O {[%clk 0:02:30]} 12. Ne5 {[%clk 0:02:15]}  Qd6 {[%clk 0:02:20]} 13. Qxd6 {[%clk 0:01:53]}  cxd6 {[%clk 0:02:19]} 14. Nxc6 {[%clk 0:01:36]}  bxc6 {[%clk 0:02:20]} 15. Rc1 {[%clk 0:01:32]}  g5 {[%clk 0:01:46]} 16. Bg3 {[%clk 0:01:29]}  Rab8 {[%clk 0:01:45]} 17. Na4 {[%clk 0:01:17]}  Rfc8 {[%clk 0:01:34]} 18. b3 {[%clk 0:01:11]}  Ne4 {[%clk 0:01:27]} 19. Bd1 {[%clk 0:00:47]}  Nb4 {[%clk 0:01:26]} 20. O-O {[%clk 0:00:17]}  Nxa2 {[%clk 0:01:24]} 21. Ra1 {[%clk 0:00:18]}  Nb4 {[%clk 0:01:22]} 22. Bg4 {[%clk 0:00:13]}  e6 {[%clk 0:01:21]} 23. Rfb1 {[%clk 0:00:12]}  f5 {[%clk 0:01:19]} 0-1


[Site "https://www.chess.com"]

[Event "Titled Tuesday Blitz July 05 Late 2022"]
[White "Bobadilla Viera, Jorge Samuel"]
[Black "Cardoso Cardoso, Jose Gabriel"]
[WhiteFideId "3906353"]
[BlackFideId "4430492"]
[WhiteElo "2202"]
[BlackElo "2485"]
[Result "1-0"]
[Round "05"]
[TimeControl "180+1"]
[Date "2022.07.05"]
[WhiteClock "0:00:15"]
[BlackClock "0:00:01"]

1. e4 {[%clk 0:03:00]}  c5 {[%clk 0:02:50]} 2. Nc3 {[%clk 0:03:00]}  Nc6 {[%clk 0:02:47]} 3. Nf3 {[%clk 0:03:00]}  g6 {[%clk 0:02:45]} 4. d4 {[%clk 0:03:00]}  cxd4 {[%clk 0:02:46]} 5. Nxd4 {[%clk 0:03:00]}  Bg7 {[%clk 0:02:45]} 6. Be3 {[%clk 0:03:01]}  Nf6 {[%clk 0:02:38]} 7. Bc4 {[%clk 0:03:01]}  Qa5 {[%clk 0:02:20]} 8. O-O {[%clk 0:02:59]}  Qb4 {[%clk 0:02:19]} 9. Bb3 {[%clk 0:02:47]}  Nxe4 {[%clk 0:02:14]} 10. Nxe4 {[%clk 0:02:29]}  d5 {[%clk 0:01:13]} 11. c3 {[%clk 0:01:52]}  Qa5 {[%clk 0:01:09]} 12. Ng3 {[%clk 0:01:45]}  O-O {[%clk 0:01:04]} 13. a4 {[%clk 0:01:42]}  e5 {[%clk 0:01:02]} 14. Nb5 {[%clk 0:01:37]}  Be6 {[%clk 0:00:57]} 15. Bxd5 {[%clk 0:01:20]}  Rad8 {[%clk 0:00:53]} 16. c4 {[%clk 0:01:20]}  Nb4 {[%clk 0:00:43]} 17. Bd2 {[%clk 0:01:16]}  a6 {[%clk 0:00:36]} 18. Qe1 {[%clk 0:01:15]}  Nd3 {[%clk 0:00:27]} 19. Bxa5 {[%clk 0:01:12]}  Nxe1 {[%clk 0:00:28]} 20. Bxd8 {[%clk 0:01:11]}  Nc2 {[%clk 0:00:28]} 21. Bxe6 {[%clk 0:01:01]}  Nxa1 {[%clk 0:00:27]} 22. Be7 {[%clk 0:00:49]}  Re8 {[%clk 0:00:27]} 23. Rxa1 {[%clk 0:00:34]}  axb5 {[%clk 0:00:23]} 24. axb5 {[%clk 0:00:32]}  Rxe7 {[%clk 0:00:22]} 25. Ra8+ {[%clk 0:00:31]}  Bf8 {[%clk 0:00:22]} 26. Bd5 {[%clk 0:00:32]}  Kg7 {[%clk 0:00:22]} 27. Kf1 {[%clk 0:00:31]}  f5 {[%clk 0:00:15]} 28. Rb8 {[%clk 0:00:31]}  Kf6 {[%clk 0:00:14]} 29. Rxb7 {[%clk 0:00:31]}  Re8 {[%clk 0:00:15]} 30. Rf7+ {[%clk 0:00:30]}  Kg5 {[%clk 0:00:14]} 31. Ne2 {[%clk 0:00:27]}  Bc5 {[%clk 0:00:14]} 32. g3 {[%clk 0:00:26]}  e4 {[%clk 0:00:14]} 33. h4+ {[%clk 0:00:23]}  Kh6 {[%clk 0:00:14]} 34. Nf4 {[%clk 0:00:22]}  e3 {[%clk 0:00:12]} 35. fxe3 {[%clk 0:00:21]}  Rxe3 {[%clk 0:00:13]} 36. Kg2 {[%clk 0:00:20]}  Rb3 {[%clk 0:00:13]} 37. Ne6 {[%clk 0:00:19]}  Rxb2+ {[%clk 0:00:14]} 38. Kh3 {[%clk 0:00:18]}  Bg1 {[%clk 0:00:11]} 39. g4 {[%clk 0:00:19]}  fxg4+ {[%clk 0:00:09]} 40. Kxg4 {[%clk 0:00:18]}  Rd2 {[%clk 0:00:03]} 41. Ng5 {[%clk 0:00:18]}  Rd4+ {[%clk 0:00:03]} 42. Kh3 {[%clk 0:00:18]}  Rd3+ {[%clk 0:00:03]} 43. Kg2 {[%clk 0:00:19]}  Kh5 {[%clk 0:00:02]} 44. Kxg1 {[%clk 0:00:19]}  Kxh4 {[%clk 0:00:02]} 45. Nxh7 {[%clk 0:00:18]}  g5 {[%clk 0:00:01]} 46. Rf3 {[%clk 0:00:14]}  Rd2 {[%clk 0:00:01]} 47. Rf2 {[%clk 0:00:15]}  Rd1+ {[%clk 0:00:01]} 48. Kg2 {[%clk 0:00:15]}  g4 {[%clk 0:00:01]} 49. Nf6 {[%clk 0:00:15]}  g3 {[%clk 0:00:01]} 50. Re2 {[%clk 0:00:15]}  Rd4 {[%clk 0:00:01]} 51. Re4+ {[%clk 0:00:15]} 1-0


[Site "https://www.chess.com"]

[Event "Titled Tuesday Blitz July 05 Late 2022"]
[White "Dilanyan, Grigor"]
[Black "Drygalov, Andrey"]
[WhiteFideId "13303570"]
[BlackFideId "24171735"]
[WhiteElo "2279"]
[BlackElo "2531"]
[Result "1/2-1/2"]
[Round "05"]
[TimeControl "180+1"]
[Date "2022.07.05"]
[WhiteClock "0:00:10"]
[BlackClock "0:00:05"]

1. Nf3 {[%clk 0:02:59]}  d5 {[%clk 0:02:57]} 2. g3 {[%clk 0:02:59]}  g6 {[%clk 0:02:58]} 3. Bg2 {[%clk 0:02:58]}  Bg7 {[%clk 0:02:58]} 4. d4 {[%clk 0:02:58]}  Nf6 {[%clk 0:02:59]} 5. O-O {[%clk 0:02:58]}  O-O {[%clk 0:03:00]} 6. c4 {[%clk 0:02:59]}  c6 {[%clk 0:03:00]} 7. cxd5 {[%clk 0:02:58]}  cxd5 {[%clk 0:03:01]} 8. Nc3 {[%clk 0:02:59]}  e6 {[%clk 0:03:02]} 9. Bf4 {[%clk 0:02:37]}  Nc6 {[%clk 0:03:00]} 10. Rc1 {[%clk 0:02:30]}  Bd7 {[%clk 0:02:58]} 11. h4 {[%clk 0:02:08]}  a6 {[%clk 0:02:55]} 12. a4 {[%clk 0:01:42]}  Rc8 {[%clk 0:02:54]} 13. e3 {[%clk 0:01:41]}  Be8 {[%clk 0:02:45]} 14. Be5 {[%clk 0:01:29]}  Nxe5 {[%clk 0:02:44]} 15. Nxe5 {[%clk 0:01:30]}  Nd7 {[%clk 0:02:42]} 16. Nd3 {[%clk 0:01:14]}  Nb6 {[%clk 0:02:40]} 17. Nc5 {[%clk 0:01:03]}  Bc6 {[%clk 0:02:39]} 18. b3 {[%clk 0:01:02]}  Nd7 {[%clk 0:02:39]} 19. Nd3 {[%clk 0:01:02]}  Qe7 {[%clk 0:02:39]} 20. h5 {[%clk 0:00:54]}  Rc7 {[%clk 0:02:33]} 21. hxg6 {[%clk 0:00:53]}  hxg6 {[%clk 0:02:33]} 22. Na2 {[%clk 0:00:49]}  a5 {[%clk 0:02:14]} 23. Qd2 {[%clk 0:00:46]}  b6 {[%clk 0:02:14]} 24. Rc2 {[%clk 0:00:45]}  Rfc8 {[%clk 0:02:13]} 25. Rfc1 {[%clk 0:00:45]}  Qd6 {[%clk 0:02:13]} 26. Nc3 {[%clk 0:00:44]}  Bf8 {[%clk 0:02:10]} 27. Bf1 {[%clk 0:00:36]}  Bb7 {[%clk 0:02:01]} 28. Nb5 {[%clk 0:00:35]}  Rxc2 {[%clk 0:02:01]} 29. Rxc2 {[%clk 0:00:30]}  Rxc2 {[%clk 0:02:01]} 30. Qxc2 {[%clk 0:00:31]}  Qc6 {[%clk 0:02:00]} 31. Qb2 {[%clk 0:00:22]}  Be7 {[%clk 0:01:46]} 32. Qe2 {[%clk 0:00:21]}  Ba6 {[%clk 0:01:42]} 33. Nf4 {[%clk 0:00:19]}  Qc1 {[%clk 0:01:40]} 34. Kg2 {[%clk 0:00:18]}  Nf6 {[%clk 0:01:38]} 35. Nd3 {[%clk 0:00:15]}  Qa1 {[%clk 0:01:37]} 36. Qb2 {[%clk 0:00:15]}  Qxb2 {[%clk 0:01:37]} 37. Nxb2 {[%clk 0:00:16]}  Ne4 {[%clk 0:01:37]} 38. Bd3 {[%clk 0:00:16]}  Nd2 {[%clk 0:01:26]} 39. Bc2 {[%clk 0:00:15]}  f6 {[%clk 0:01:23]} 40. Nd3 {[%clk 0:00:15]}  g5 {[%clk 0:01:22]} 41. f4 {[%clk 0:00:15]}  g4 {[%clk 0:01:22]} 42. Nf2 {[%clk 0:00:14]}  f5 {[%clk 0:01:22]} 43. Nd3 {[%clk 0:00:15]}  Bf6 {[%clk 0:00:19]} 44. Nc7 {[%clk 0:00:15]}  Bc8 {[%clk 0:00:19]} 45. Ne8 {[%clk 0:00:15]}  Be7 {[%clk 0:00:17]} 46. Ne5 {[%clk 0:00:15]}  Kf8 {[%clk 0:00:16]} 47. Nc7 {[%clk 0:00:15]}  Bd6 {[%clk 0:00:16]} 48. Nb5 {[%clk 0:00:14]}  Bxe5 {[%clk 0:00:14]} 49. dxe5 {[%clk 0:00:15]}  Ke7 {[%clk 0:00:13]} 50. Nd4 {[%clk 0:00:13]}  Ba6 {[%clk 0:00:11]} 51. Kf2 {[%clk 0:00:13]}  Kd7 {[%clk 0:00:12]} 52. Ke1 {[%clk 0:00:12]}  Nf1 {[%clk 0:00:09]} 53. Kf2 {[%clk 0:00:10]}  Nd2 {[%clk 0:00:09]} 54. Ke1 {[%clk 0:00:10]}  Nf1 {[%clk 0:00:05]} 55. Kf2 {[%clk 0:00:10]}  Nd2 {[%clk 0:00:05]} 1/2-1/2


[Site "https://www.chess.com"]

[Event "Titled Tuesday Blitz July 05 Late 2022"]
[White "Domingo Nunez, Ruben"]
[Black "Sankalp Gupta"]
[WhiteFideId "22245570"]
[BlackFideId "5097010"]
[WhiteElo "2373"]
[BlackElo "2399"]
[Result "1-0"]
[Round "05"]
[TimeControl "180+1"]
[Date "2022.07.05"]
[WhiteClock "0:00:16"]
[BlackClock "0:00:02"]

1. c4 {[%clk 0:03:00]}  e5 {[%clk 0:02:55]} 2. Nc3 {[%clk 0:03:01]}  Bb4 {[%clk 0:02:54]} 3. Qc2 {[%clk 0:02:59]}  Bxc3 {[%clk 0:02:50]} 4. Qxc3 {[%clk 0:02:59]}  Nc6 {[%clk 0:02:50]} 5. Nf3 {[%clk 0:02:56]}  Qe7 {[%clk 0:02:49]} 6. g3 {[%clk 0:02:55]}  d6 {[%clk 0:02:44]} 7. Bg2 {[%clk 0:02:55]}  f5 {[%clk 0:02:44]} 8. b4 {[%clk 0:02:51]}  Nf6 {[%clk 0:02:44]} 9. Bb2 {[%clk 0:02:49]}  O-O {[%clk 0:02:44]} 10. O-O {[%clk 0:02:46]}  Be6 {[%clk 0:02:37]} 11. b5 {[%clk 0:02:19]}  Nd8 {[%clk 0:02:33]} 12. d3 {[%clk 0:02:08]}  Nf7 {[%clk 0:02:26]} 13. a4 {[%clk 0:02:07]}  Rae8 {[%clk 0:02:08]} 14. Ba3 {[%clk 0:02:03]}  Bc8 {[%clk 0:02:04]} 15. c5 {[%clk 0:01:57]}  f4 {[%clk 0:02:03]} 16. Rac1 {[%clk 0:01:55]}  fxg3 {[%clk 0:01:55]} 17. hxg3 {[%clk 0:01:53]}  Ng4 {[%clk 0:01:53]} 18. Nd2 {[%clk 0:01:25]}  Qg5 {[%clk 0:01:49]} 19. cxd6 {[%clk 0:01:25]}  Qh5 {[%clk 0:01:38]} 20. Nf3 {[%clk 0:01:24]}  cxd6 {[%clk 0:01:02]} 21. Rfd1 {[%clk 0:01:24]}  Be6 {[%clk 0:00:50]} 22. Qc7 {[%clk 0:01:21]}  Ng5 {[%clk 0:00:37]} 23. Qxd6 {[%clk 0:01:18]}  Rxf3 {[%clk 0:00:23]} 24. exf3 {[%clk 0:01:19]}  Nxf3+ {[%clk 0:00:23]} 25. Kf1 {[%clk 0:01:18]}  Ngh2+ {[%clk 0:00:22]} 26. Ke2 {[%clk 0:01:18]}  Nd4+ {[%clk 0:00:19]} 27. Kd2 {[%clk 0:01:14]}  Qe2+ {[%clk 0:00:14]} 28. Kc3 {[%clk 0:01:14]}  Rc8+ {[%clk 0:00:15]} 29. Kb4 {[%clk 0:00:53]}  Rxc1 {[%clk 0:00:07]} 30. Rxc1 {[%clk 0:00:53]}  Qd2+ {[%clk 0:00:07]} 31. Rc3 {[%clk 0:00:47]}  h6 {[%clk 0:00:06]} 32. Qxe5 {[%clk 0:00:41]}  Qxf2 {[%clk 0:00:06]} 33. Bxb7 {[%clk 0:00:35]}  Ng4 {[%clk 0:00:06]} 34. Qb8+ {[%clk 0:00:32]}  Kh7 {[%clk 0:00:05]} 35. Be4+ {[%clk 0:00:33]}  Bf5 {[%clk 0:00:05]} 36. Bd5 {[%clk 0:00:28]}  Nc2+ {[%clk 0:00:03]} 37. Kb3 {[%clk 0:00:18]}  Nf6 {[%clk 0:00:03]} 38. Rxc2 {[%clk 0:00:17]}  Qd4 {[%clk 0:00:02]} 39. Bc4 {[%clk 0:00:17]}  Bxd3 {[%clk 0:00:02]} 40. Bxd3+ {[%clk 0:00:16]}  Qxd3+ {[%clk 0:00:03]} 41. Rc3 {[%clk 0:00:17]}  Qd1+ {[%clk 0:00:04]} 42. Ka2 {[%clk 0:00:17]}  Nd5 {[%clk 0:00:04]} 43. Qc8 {[%clk 0:00:14]}  Qd2+ {[%clk 0:00:02]} 44. Bb2 {[%clk 0:00:15]}  Nxc3+ {[%clk 0:00:02]} 45. Qxc3 {[%clk 0:00:15]}  Qd5+ {[%clk 0:00:02]} 46. Qb3 {[%clk 0:00:15]}  Qg5 {[%clk 0:00:03]} 47. a5 {[%clk 0:00:15]}  h5 {[%clk 0:00:02]} 48. Qd3+ {[%clk 0:00:15]}  Kh6 {[%clk 0:00:02]} 49. Bc3 {[%clk 0:00:15]}  g6 {[%clk 0:00:02]} 50. Bd2 {[%clk 0:00:16]} 1-0


[Site "https://www.chess.com"]